Cogmind - Beta 11 @@@ ROGUE MODE // 2022.03.22 @ 23:27:45 Player: Falconhoof Result: Destroyed by L-41 Fighter with Axe Performance ------------- Evolutions (3) 1500 Regions Visited (9) 1800 Robots Destroyed (133) 665 Value Destroyed (4210) 4210 Prototype IDs (30) 600 Alien Tech Used (0) 0 Bonus (593) 593 TOTAL SCORE: 9368 Bonus ------- High Alert Combat Kills 278 Follower Combat Kills 157 Aligned with FarCom 300 Friendly Fire -142 Cogmind --------- Core Integrity 0/700 Matter 290/300 Energy 85/100 System Corruption 12% Temperature Cool (0) Movement Core (100) Ox1 Location -7/Lower Caves Parts ------- > --- POWER (2) -------- (None) > --- PROPULSION (3) --- (None) > --- UTILITY (4) ------ Target Analyzer Core Analyzer > --- WEAPON (4) ------- Great Maul > --- INVENTORY (5) ---- Improved Heat Sink Makeshift Salvage Targeting Computer Particle Charger Recalibrator Peak State ------------ > --- POWER ------------ Deuterium Engine Improved Deuterium Engine > --- PROPULSION ------- Flexi-carbon Leg Flexi-carbon Leg Flexi-carbon Leg > --- UTILITY ---------- Improved Heat Sink Large Storage Unit Target Analyzer Core Analyzer > --- WEAPON ----------- Lightning Gun Improved Medium Laser Heavy Particle Gun Cooled Pulse Rifle > --- INVENTORY -------- Light Nuclear Core Improved Carbon-fiber Leg Improved Carbon-fiber Leg Flexi-carbon Leg Improved Heat Sink Makeshift Salvage Targeting Computer Particle Charger Recalibrator Lightning Gun Lightning Gun Improved Grenade Launcher Great Maul Great Maul [Rating: 53] Favorites ----------- Power Heavy Ion Engine Engine Heavy Ion Engine Power Core Light Nuclear Core Propulsion Light Treads Treads Light Treads Leg Flexi-carbon Leg Utility Large Storage Unit Device Improved Heat Sink Storage Large Storage Unit Processor Targeting Computer Protection Light Armor Plating Weapon Heavy Hammer Energy Gun Particle Gun Energy Cannon Latent Energy Streamer Ballistic Gun Gauss Rifle Ballistic Cannon Light Cannon Launcher Mini Grenade Launcher Special Weapon Mining Laser Impact Weapon Heavy Hammer Build | -11 -10 -10 -9 -9 -9 -8 -8 -7 -7 ------- Run | Scr Mat Min Mat Min Exi Min Mat Fac Low Slots Evolved 6 | . . . 2 . . . 2 2 . Power 1 | . . . . . . . 1 . . Propulsion 1 | . . . . . . . 1 . . Utility 2 | . . . 1 . . . . 1 . Weapon 2 | . . . 1 . . . . 1 . Parts Attached 122 | 6 5 7 19 10 2 . 27 29 17 Power 16 | 1 . 1 1 2 . . 5 3 3 Engine 12 | 1 . 1 1 2 . . 4 1 2 Core 4 | . . . . . . . 1 2 1 Reactor . | . . . . . . . . . . Propulsion 25 | 2 1 . 4 2 . . 5 6 5 Treads 14 | 2 1 . 4 2 . . 5 . . Leg 11 | . . . . . . . . 6 5 Wheel . | . . . . . . . . . . Hover . | . . . . . . . . . . Flight . | . . . . . . . . . . Utility 25 | 1 2 . 6 2 . . 7 7 . Device 9 | . . . 1 1 . . 3 4 . Storage 2 | 1 1 . . . . . . . . Processor 5 | . . . 1 . . . 1 3 . Hackware . | . . . . . . . . . . Protection 9 | . 1 . 4 1 . . 3 . . Artifact . | . . . . . . . . . . Weapon 56 | 2 2 6 8 4 2 . 10 13 9 Energy Gun 20 | 2 . . 5 1 1 . . 6 5 Energy Cannon 3 | . . . 1 . 1 . 1 . . Ballistic Gun 8 | . . . 1 . . . 5 2 . Ballistic Cannon 2 | . 1 . . . . . 1 . . Launcher 11 | . . 3 . 2 . . 2 3 1 Special Weapon 2 | . . 2 . . . . . . . Impact Weapon 10 | . 1 1 1 1 . . 1 2 3 Slashing Weapon . | . . . . . . . . . . Piercing Weapon . | . . . . . . . . . . Special Melee Weapon . | . . . . . . . . . . Unidentified Prototypes 8 | . . . 3 . 1 . 1 2 1 Corrupted Parts 5 | . . . . . . . 3 2 . System Corruption 39 | . . . . . . . 30 9 . Parts Lost 52 | . . 1 4 3 . . 13 12 19 Power 8 | . . 1 . 1 . . 2 1 3 Propulsion 13 | . . . . 1 . . 4 2 6 Utility 10 | . . . 2 . . . 3 3 2 Weapon 21 | . . . 2 1 . . 4 6 8 Highest Loss Streak 8 | . . 1 1 2 . . 4 8 8 To Critical Strikes . | . . . . . . . . . . Average Slot Usage (%) 92 | . 96 97 98 99 99 100 71 85 89 Engine 9 | . 14 11 11 10 11 11 6 6 9 Core 1 | . . . . . . . 2 5 2 Treads 15 | . 27 28 21 21 22 22 12 2 . Leg 5 | . . . . . . . . 17 20 Device 5 | . . . . 7 11 11 8 8 6 Storage 10 | . 14 14 11 11 11 11 9 7 6 Processor 7 | . . . 3 11 11 11 5 8 15 Protection 5 | . 10 14 16 3 . . 2 1 . Energy Gun 10 | . 9 . 12 16 10 11 2 15 13 Energy Cannon 1 | . . . 4 . 3 11 4 . . Ballistic Gun 1 | . . . . . . . 7 2 4 Ballistic Cannon 3 | . 8 14 1 . . . 1 1 . Launcher 2 | . . 1 2 5 6 . 3 4 . Impact Weapon 7 | . 9 11 11 10 11 11 4 1 5 Naked Turns . | . . . . . . . . . . Heaviest Build 56 | 13 34 34 48 41 45 45 53 56 55 Greatest Support 60 | 40 40 40 40 40 40 40 60 58 60 Greatest Overweight (x) 17 | . . . 1 1 1 1 17 12 8 Average Overweight (x) . | . . . . . . 1 1 . . Largest Inventory Capacity 15 | 8 15 15 15 15 15 15 15 15 15 Average Capacity 14 | 7 9 15 15 15 15 15 15 15 14 Most Carried 15 | 2 8 13 15 15 15 15 15 15 15 Average Carried 12 | 1 6 9 13 14 13 14 12 13 12 Final Capacity 15 | 8 15 15 15 15 15 15 15 15 5 Final Carried 15 | 2 8 11 15 13 14 14 13 15 4 Class Distribution -------------------- 70% | Mutant 11% | Scavenger-Mutant 7% | Scavenger-Gunner 3% | Gunner 3% | Skirmisher 3% | Scavenger-Skirmisher Dominant Class ---------------- Mutant | -10/Materials Mutant | -10/Mines Mutant | -9/Materials Mutant | -9/Mines Mutant | -9/Exiles Mutant | -8/Mines Mutant | -8/Materials Mutant | -7/Factory Scavenger-Gunner | -7/Lower Caves Resources | -11 -10 -10 -9 -9 -9 -8 -8 -7 -7 ----------- Run | Scr Mat Min Mat Min Exi Min Mat Fac Low Matter Collected 2336 | 203 149 267 265 95 . 20 449 574 314 Remotely . | . . . . . . . . . . Salvage Created 5048 | . 308 176 1004 431 . 133 1578 672 746 Parts 286 | . 16 9 66 31 . 8 81 48 27 Haulers Intercepted 5 | . 1 . 2 . . . 2 . . Recyclers Shooed . | . . . . . . . . . . Parts Field Recycled . | . . . . . . . . . . Retrieved Matter . | . . . . . . . . . . Parts Self-Destructed 28 | . . . . . . . . . 28 Prevented 1 | . . . . . . . . . 1 Kills | -11 -10 -10 -9 -9 -9 -8 -8 -7 -7 ------- Run | Scr Mat Min Mat Min Exi Min Mat Fac Low Combat Hostiles Destroyed 120 | . 6 18 19 17 . 3 28 12 17 Melee 9 | . . . 1 5 . . 1 . 2 Guns 48 | . 3 . 6 8 . . 13 8 10 Cannons 13 | . 2 4 7 . . . . . . AOE 37 | . 1 12 2 2 . 3 12 4 1 Classes Destroyed 16 | . 2 3 6 1 . . 1 2 1 Worker 4 | . . 1 1 . . . 2 . . Builder 9 | . . . 1 . . . 5 3 . Tunneler 1 | . . . . 1 . . . . . Hauler 5 | . 1 . 2 . . . 2 . . Recycler 5 | . . . 2 . . . 2 1 . Watcher 4 | . . . 1 . . . 2 1 . Swarmer 27 | . . 3 4 6 . . 4 4 6 Grunt 57 | . 6 3 8 7 . 2 20 2 9 Brawler 3 | . . . 1 1 . . 1 . . Duelist 3 | . . . 1 . . 1 . . 1 Sentry 9 | . . . 5 . . . 2 2 . Hunter 1 | . . . . . . . . 1 . Programmer 3 | . . . . . . . . 3 . Heavy 1 | . . . . . . . 1 . . Behemoth 1 | . . . . . . . . . 1 Assembled 16 | . . 13 . 3 . . . . . Best Kill Streak 13 | . 2 13 4 8 . 3 9 8 4 Combat Bots Only 13 | . 2 13 3 7 . 3 8 6 4 Max Kills in Single Turn 5 | . 1 4 2 2 . 3 5 3 1 Gunslinging . | . . . . . . . . . . Exploded 4 | . 1 4 1 1 . 3 3 3 1 Melee 1 | . . . 1 1 . . 1 . 1 Uniques/NPCs Destroyed . | . . . . . . . . . . Combat | -11 -10 -10 -9 -9 -9 -8 -8 -7 -7 -------- Run | Scr Mat Min Mat Min Exi Min Mat Fac Low Damage Taken 8938 | . 295 359 1157 720 . . 2535 1521 2351 Core 1585 | . 48 109 45 175 . . 488 197 523 Absorbed by Shields . | . . . . . . . . . . Redirected to Shielding 10 | . . . 10 . . . . . . Regen/Repaired (Parts) 169 | . 53 . 67 . . . . 49 . Core Remaining (%) 48 | 100 . 37 . . . 45 11 . . Volleys Fired 294 | . 20 16 67 22 . 1 71 54 43 Largest 4 | . 2 2 2 2 . 2 3 4 4 Hottest 226 | . 80 135 118 115 . 125 80 175 226 Shots Fired 469 | . 35 24 75 24 . 2 107 105 97 Gun 371 | . 30 . 45 24 . 1 82 94 95 Cannon 65 | . 5 16 29 . . 1 14 . . Launcher 32 | . . 7 1 . . . 11 11 2 Special 1 | . . 1 . . . . . . . Kinetic 145 | . 5 16 15 . . . 87 6 16 Thermal 168 | . 15 1 29 14 . 1 3 45 60 Explosive 22 | . . 7 1 . . . 11 1 2 Electromagnetic 134 | . 15 . 30 10 . 1 6 53 19 Robot Hit Streak 23 | . 10 5 12 21 . . 12 23 7 Robot Miss Streak 6 | . 2 1 6 3 . . 3 5 3 Penetration Max . | . . . . . . . . . . Secondary Targets 7 | . 1 . . 1 . . 3 . 2 Max Gunslinging Chain 1 | . 1 . . 1 . . 1 . 1 Shots Hit Robots 354 | . 30 15 64 33 . . 76 64 72 Core Hits 213 | . 15 25 32 21 . 4 62 30 24 Critical Kills 6 | . . . 1 1 . . 2 . 2 Critical Parts Destroyed 7 | . . . 1 2 . . 1 . 3 Critical Strikes 21 | . . 2 3 3 . . 3 3 7 Burn 5 | . . . . . . . . 3 2 Destroy 3 | . . . . . . . 2 . 1 Blast 2 | . . 2 . . . . . . . Smash 11 | . . . 3 3 . . 1 . 4 Melee Attacks 77 | . 1 4 19 26 . . 11 . 16 Impact 77 | . 1 4 19 26 . . 11 . 16 Slashing . | . . . . . . . . . . Piercing . | . . . . . . . . . . Sneak Attacks 5 | . 1 1 2 . . . . . 1 Combat Hostiles 1 | . . . . . . . . . 1 Follow-up Attacks . | . . . . . . . . . . Damage Inflicted 11955 | . 462 1192 1788 1066 . 301 3599 1466 2081 Guns 4384 | . 272 . 649 287 . . 969 943 1264 Cannons 716 | . 89 179 342 . . . 106 . . Explosions 4609 | . 64 816 221 183 . 301 2268 523 233 Melee 2246 | . 37 197 576 596 . . 256 . 584 Ramming . | . . . . . . . . . . Kinetic 1763 | . 89 179 177 . . . 1021 94 203 Thermal 3086 | . 180 . 488 306 . 97 153 914 948 Explosive 1916 | . . 816 92 . . . 890 . 118 Electromagnetic 2944 | . 156 . 455 164 . 204 1279 458 228 Impact 2246 | . 37 197 576 596 . . 256 . 584 Slashing . | . . . . . . . . . . Piercing . | . . . . . . . . . . Highest Corruption 48 | . . . . . . 3 48 12 12 Average Corruption 14 | . . . . . . 3 34 5 12 Corruption Purged . | . . . . . . . . . . Corruption Blocked . | . . . . . . . . . . Effects 101 | . . . . . . 4 33 16 48 Message Errors 26 | . . . . . . 3 7 3 13 Matter Fused 22 | . . . . . . . 10 5 7 Heat Flow Errors 11 | . . . . . . . 3 2 6 Energy Discharges 7 | . . . . . . . 2 1 4 Parts Rejected 1 | . . . . . . . . . 1 Data Loss (minor) 15 | . . . . . . . 4 1 10 Data Loss (major) 2 | . . . . . . . 1 . 1 Misfires 5 | . . . . . . . 1 1 3 Alerts 4 | . . . . . . 1 . 3 . Misdirections 1 | . . . . . . . 1 . . Weapon Failures 7 | . . . . . . . 4 . 3 Overload Shots 9 | . . . . . . . . . 9 Overflow Damage 461 | . . 66 52 79 . . 88 19 157 Projectiles 14 | . . 14 . . . . . . . Explosions 125 | . . 27 . 4 . . 75 19 . Melee 322 | . . 25 52 75 . . 13 . 157 Knockbacks 12 | . . 4 2 1 . . 3 . 2 Impact 8 | . . 1 1 1 . . 3 . 2 Kinetic 4 | . . 3 1 . . . . . . Secondary . | . . . . . . . . . . Self-Inflicted Damage 381 | . 8 113 30 76 . . 99 18 37 Shots 16 | . 1 5 1 3 . . 4 1 1 Rammed . | . . . . . . . . . . Targets Rammed . | . . . . . . . . . . Kicked . | . . . . . . . . . . Crushed . | . . . . . . . . . . Highest Temperature 342 | . 231 36 331 200 . 57 202 325 342 Average Temperature 93 | . 108 18 112 69 . 33 55 107 108 Received Heat Transfer 2462 | . 159 24 375 281 . . 981 237 405 Effects 7 | . . . 2 1 . . . 3 1 Shutdowns 1 | . . . . . . . . . 1 Energy Bleed 1 | . . . . . . . . 1 . Interference 4 | . . . 2 1 . . . 1 . Damage (minor) 1 | . . . . . . . . 1 . Siege Activations . | . . . . . . . . . . Robots Corrupted 3 | . . . 2 . . . 1 . . Combat Hostiles 2 | . . . 1 . . . 1 . . Parts Fried 24 | . . 5 8 . . . 7 1 3 Impact Corruptions 21 | . . 3 4 4 . . 2 . 8 Robots Melted . | . . . . . . . . . . Combat Hostiles . | . . . . . . . . . . Parts Melted 5 | . 1 . 1 . . . . 2 1 Heat Transferred 5673 | . 425 . 940 596 . 150 211 1606 1745 Parts Sabotaged . | . . . . . . . . . . Parts Stolen . | . . . . . . . . . . Parts Stripped . | . . . . . . . . . . Power Chain Reactions 11 | . 1 . 2 3 . . 1 3 1 Missiles Intercepted . | . . . . . . . . . . Latent Energy Used 972 | . . . . . . 200 772 . . LE Corruption 16 | . . . . . . 3 13 . . Alert | -11 -10 -10 -9 -9 -9 -8 -8 -7 -7 ------- Run | Scr Mat Min Mat Min Exi Min Mat Fac Low Peak Influence 826 | . 140 149 592 286 . 104 826 402 . Initial 329 | . . 5 . 170 . . 40 329 . Average 216 | . 57 50 335 172 . 104 374 279 . Maximum Alert Level 3 | . . . 2 1 . . 3 2 . Low Security (%) 59 | 100 100 100 37 59 . 100 48 27 . Level 1 22 | . . . 11 40 . . 3 62 . Level 2 14 | . . . 50 . . . 24 10 . Level 3 3 | . . . . . . . 23 . . Level 4 . | . . . . . . . . . . Level 5 . | . . . . . . . . . . High Security . | . . . . . . . . . . Max Security . | . . . . . . . . . . Squads Dispatched 17 | . . . 4 . . . 7 6 . Investigation 3 | . . . 1 . . . . 2 . Extermination 3 | . . . . . . . . 3 . Reinforcement 11 | . . . 3 . . . 7 1 . Assault . | . . . . . . . . . . Garrison . | . . . . . . . . . . Intercept . | . . . . . . . . . . Searches Triggered . | . . . . . . . . . . Construction Impeded 2 | . . . . . . . 1 1 . Haulers Reinforced . | . . . . . . . . . . Active Scanning Responses . | . . . . . . . . . . Cargo Convoy Interrupts . | . . . . . . . . . . Stealth | -11 -10 -10 -9 -9 -9 -8 -8 -7 -7 --------- Run | Scr Mat Min Mat Min Exi Min Mat Fac Low Distress Signals 7 | . . . 1 . . . 4 2 . Communications Jammed . | . . . . . . . . . . Distress Signals . | . . . . . . . . . . Times Spotted 178 | . 9 30 34 19 . . 45 17 24 Peak Tracking Total 21 | . 3 21 11 4 . . 6 7 9 Tactical Retreats 11 | . . . 4 1 . . 4 . 2 Traps | -11 -10 -10 -9 -9 -9 -8 -8 -7 -7 ------- Run | Scr Mat Min Mat Min Exi Min Mat Fac Low Traps Triggered 1 | . . . . . . . . 1 . Indirectly . | . . . . . . . . . . Trap Hack Attempts . | . . . . . . . . . . Triggered . | . . . . . . . . . . Disarmed 3 | . 3 . . . . . . . . Reprogrammed . | . . . . . . . . . . Reused . | . . . . . . . . . . Traps Extracted . | . . . . . . . . . . Installed . | . . . . . . . . . . Triggered . | . . . . . . . . . . Most Traps Carried 3 | . . . . 3 3 3 3 . . Machines | -11 -10 -10 -9 -9 -9 -8 -8 -7 -7 ---------- Run | Scr Mat Min Mat Min Exi Min Mat Fac Low Machines Disabled 12 | . . . 4 . . 1 4 3 . Max in Single Turn 2 | . . . 1 . . 1 1 2 . Machines Sabotaged . | . . . . . . . . . . Garrisons Compromised . | . . . . . . . . . . Overloaded Fab Kills . | . . . . . . . . . . Hacking | -11 -10 -10 -9 -9 -9 -8 -8 -7 -7 --------- Run | Scr Mat Min Mat Min Exi Min Mat Fac Low Machines Accessed 22 | . 4 . 5 . 4 . 1 8 . Terminals 9 | . 2 . 2 . . . 1 4 . Fabricators 1 | . . . . . . . . 1 . Repair Stations 4 | . 1 . 1 . . . . 2 . Recycling Units 3 | . 1 . 1 . . . . 1 . Scanalyzers 1 | . . . 1 . . . . . . Garrison Access . | . . . . . . . . . . Total Hacks 54 | . 11 . 15 . 9 . 2 17 . Successful 41 | . 8 . 12 . 9 . . 12 . Failed 13 | . 3 . 3 . . . 2 5 . Catastrophic 2 | . 2 . . . . . . . . Database Lockouts . | . . . . . . . . . . Manual 2 | . . . . . 1 . . 1 . Terminals 24 | . 7 . 7 . . . 2 8 . Fabricators 3 | . . . . . . . . 3 . Repair Stations 13 | . 3 . 5 . . . . 5 . Recycling Units 3 | . 1 . 1 . . . . 1 . Scanalyzers 2 | . . . 2 . . . . . . Garrison Access . | . . . . . . . . . . Terminal Hacks 23 | . 4 . 5 . 9 . . 5 . Record 17 | . 2 . 4 . 8 . . 3 . Open DSF 1 | . . . . . . . . 1 . Emergency Access Points 1 | . . . . . . . . 1 . Locate Traps 1 | . 1 . . . . . . . . Disarm Traps 1 | . 1 . . . . . . . . Zone Layout 1 | . . . 1 . . . . . . EX-Prototype ID Bank 1 | . . . . . 1 . . . . Fabricator Hacks 3 | . . . . . . . . 3 . Network Status 1 | . . . . . . . . 1 . Load Schematic 1 | . . . . . . . . 1 . Build 1 | . . . . . . . . 1 . Repair Station Hacks 10 | . 3 . 4 . . . . 3 . Scan Component 5 | . 2 . 2 . . . . 1 . Repair 4 | . 1 . 2 . . . . 1 . Refit 1 | . . . . . . . . 1 . Recycling Unit Hacks 3 | . 1 . 1 . . . . 1 . Report Inventory 3 | . 1 . 1 . . . . 1 . Scanalyzer 2 | . . . 2 . . . . . . Insert Component 1 | . . . 1 . . . . . . Analyze 1 | . . . 1 . . . . . . Garrison Access Hacks . | . . . . . . . . . . Unauthorized Hacks . | . . . . . . . . . . Terminals . | . . . . . . . . . . Fabricators . | . . . . . . . . . . Repair Stations . | . . . . . . . . . . Recycling Units . | . . . . . . . . . . Scanalyzers . | . . . . . . . . . . Garrison Access . | . . . . . . . . . . Data Cores Recovered . | . . . . . . . . . . Used . | . . . . . . . . . . Hacking Detections 14 | . 4 . 4 . . . 1 5 . Full Trace Events 3 | . . . 1 . . . . 2 . Feedback Events 1 | . . . . . . . . 1 . Corruption 1 | . . . . . . . . 1 . Feedback Blocked . | . . . . . . . . . . Robot Schematics Acquired . | . . . . . . . . . . Robots Built . | . . . . . . . . . . Authchips . | . . . . . . . . . . Time . | . . . . . . . . . . Total Robot Build Rating . | . . . . . . . . . . Part Schematics Acquired 1 | . . . 1 . . . . . . Parts Built 1 | . . . . . . . . 1 . Authchips . | . . . . . . . . . . Time 62 | . . . . . . . . 62 . Total Part Build Rating 2 | . . . . . . . . 2 . Parts Repaired 4 | . 1 . 2 . . . . 1 . Time 137 | . 26 . 92 . . . . 19 . Parts Recycled . | . . . . . . . . . . Recycled Matter . | . . . . . . . . . . Retrieved Matter . | . . . . . . . . . . Retrieved Components . | . . . . . . . . . . Parts Scanalyzed 1 | . . . 1 . . . . . . Part Schematics Acquired 1 | . . . 1 . . . . . . Parts Damaged . | . . . . . . . . . . Bothacking | -11 -10 -10 -9 -9 -9 -8 -8 -7 -7 ------------ Run | Scr Mat Min Mat Min Exi Min Mat Fac Low Used RIF Installer . | . . . . . . . . . . Robots Hacked . | . . . . . . . . . . Non-combat . | . . . . . . . . . . Combat . | . . . . . . . . . . Robot Hacks Applied . | . . . . . . . . . . Relay Couplers Released . | . . . . . . . . . . Fabnet Peak Effective % . | . . . . . . . . . . Robots Rewired . | . . . . . . . . . . Allies Hacked . | . . . . . . . . . . Hacks Repelled . | . . . . . . . . . . Allies | -11 -10 -10 -9 -9 -9 -8 -8 -7 -7 -------- Run | Scr Mat Min Mat Min Exi Min Mat Fac Low Total Allies 6 | . . 4 . 2 . . . . . Largest Group 3 | . . 3 1 2 . . . . . Highest-Rated Group 42 | . . 40 31 42 . . . . . Highest-Rated Ally 31 | . . 31 31 31 . . . . . Total Orders 1 | . . 1 . . . . . . . GUARD 1 | . . 1 . . . . . . . Ally Attacks 35 | . . 27 5 3 . . . . . Total Damage 395 | . . 270 105 20 . . . . . Kills 8 | . . 5 3 . . . . . . Allies Corrupted . | . . . . . . . . . . Allies Melted . | . . . . . . . . . . Intel | -11 -10 -10 -9 -9 -9 -8 -8 -7 -7 ------- Run | Scr Mat Min Mat Min Exi Min Mat Fac Low Robot Analysis Total . | . . . . . . . . . . Derelict Logs Recovered 4 | . . 1 . 1 . . . . 2 Drone Launches . | . . . . . . . . . . Drone Recoveries . | . . . . . . . . . . Exploration | -11 -10 -10 -9 -9 -9 -8 -8 -7 -7 ------------- Run | Scr Mat Min Mat Min Exi Min Mat Fac Low Turns Passed 9171 | 116 884 975 1271 1151 859 226 961 1541 1187 Spaces Moved 4488 | 66 483 538 444 564 470 92 276 813 742 Core 21 | 5 . . . . . . 6 8 2 Treads 2976 | 61 483 538 444 564 470 92 270 54 . Legs 1491 | . . . . . . . . 751 740 Wheels . | . . . . . . . . . . Hover . | . . . . . . . . . . Flight . | . . . . . . . . . . Fastest Speed 50 | 50 160 160 160 160 160 240 160 120 120 Average Speed 165 | 151 160 160 203 172 182 240 244 144 121 Slowest Speed 900 | 160 160 160 240 240 240 240 900 650 450 Overloaded Moves . | . . . . . . . . . . Propulsion Burnouts . | . . . . . . . . . . Robots Hopped . | . . . . . . . . . . Cave-ins Triggered 1 | . . . . . . . 1 . . Exploration Rate (%) 57 | 3 82 99 40 94 92 24 30 23 91 Regions Visited 9 Branch Regions 5 Pre-discovered Areas 1 | . . . . . 1 . . . . Known Exits Taken 2 | . . . . . . 1 1 . . Unknown Exits Taken 7 | 1 1 1 1 1 1 . . 1 . Scrap Searched 6 | . . 1 . 1 . 1 . . 3 Spaces Dug 1 | . . 1 . . . . . . . Terrain Destroyed 274 | . 2 29 17 12 . 32 132 36 14 Melee . | . . . . . . . . . . Projectile 1 | . . 1 . . . . . . . AOE 273 | . 2 28 17 12 . 32 132 36 14 Terrain Rammed . | . . . . . . . . . . Walls Destroyed . | . . . . . . . . . . Machines Disabled . | . . . . . . . . . . Actions | -11 -10 -10 -9 -9 -9 -8 -8 -7 -7 --------- Run | Scr Mat Min Mat Min Exi Min Mat Fac Low Total 5704 | 81 560 622 709 678 474 97 465 1097 921 Wait 569 | 5 34 48 130 46 . 1 53 162 90 Move 4479 | 65 482 537 443 563 469 91 275 812 742 Hop . | . . . . . . . . . . Pick Up 66 | 5 10 4 14 2 1 2 10 15 3 Fast Attach 49 | 3 3 . 8 4 1 . 10 18 2 Attach 70 | 3 1 7 9 6 1 . 17 11 15 Detach 48 | . 2 6 7 4 1 . 12 11 5 Swap 3 | . 1 . 2 . . . . . . Drop 49 | . 6 . 10 5 1 2 6 14 5 Fire 294 | . 20 16 67 22 . 1 71 54 43 Melee 77 | . 1 4 19 26 . . 11 . 16 Ram . | . . . . . . . . . . Kick . | . . . . . . . . . . Crush . | . . . . . . . . . . Escape Stasis . | . . . . . . . . . . Rewire . | . . . . . . . . . . Trap . | . . . . . . . . . . Miscellaneous . | . . . . . . . . . . Route ------- -11/Scrapyard -10/Materials (discovered 5 exits: *Mat x3 / [*Min x2]) -10/Mines (discovered 2 exits: *Mat x2) -9/Materials (discovered 4 exits: Mat / [*Min] / [*Sto x2]) -9/Mines (discovered 2 exits: *Mat / *Exi) -9/Exiles (discovered 2 exits: [*Min x2]) -8/Mines -8/Materials -7/Factory -7/Lower Caves (discovered 1 exit: [*Low]) History --------- Turn | Location | Event 12 | -11/Scrapyard | Discovered new exit (range 16) 117 | -11/Scrapyard | Entered Materials 316 | -10/Materials | Build established: Mutant 367 | -10/Materials | Discovered new exit (range 10) 519 | -10/Materials | Discovered new exit (range 11) 535 | -10/Materials | Discovered new exit (range 16) 606 | -10/Materials | Repaired Lgt. Treads 656 | -10/Materials | Discovered new exit (range 9) 921 | -10/Materials | Discovered new exit (range 14) 1001 | -10/Materials | Entered Mines 1204 | -10/Mines | Discovered new exit (range 7) 1487 | -10/Mines | Assisted by bots powering up and referring to "LRC-V3" 1758 | -10/Mines | Learned location of 1 exit from Materials 1770 | -10/Mines | Assembled infested the area 1788 | -10/Mines | Core integrity fell below 50% 1811 | -10/Mines | Discovered new exit (range 12) 1816 | -10/Mines | Received a Mining Laser from a helpful Derelict 1827 | -10/Mines | Destroyed 13 combat bots 1976 | -10/Mines | Entered Materials 1976 | -9/Materials | Accompanied by 1 ally 1976 | -9/Materials | Evolved 2 slots: Utility x1, Weapon x1 1977 | -9/Materials | Identified exit to Materials 2080 | -9/Materials | Discovered new exit (range 7) 2158 | -9/Materials | Discovered new exit (range 15) 3011 | -9/Materials | Repaired Hvy. EM Shotgun 3044 | -9/Materials | Repaired Mni. Grenade Launcher 3212 | -9/Materials | Discovered new exit (range 13) 3247 | -9/Materials | Entered Mines 3336 | -9/Mines | Discovered exit to Materials (range 6) 3582 | -9/Mines | Found a hidden stash of uninstalled traps 3741 | -9/Mines | Deemed a non-threat by the Exiles lab entrance 3741 | -9/Mines | Discovered new exit (range 5) 3826 | -9/Mines | Excavation squad dispatched 3826 | -9/Mines | A large section of the Mines collapsed 3865 | -9/Mines | Destroyed 7 combat bots 4056 | -9/Mines | Core integrity fell below 50% 4398 | -9/Mines | Entered Exiles 4422 | -9/Exiles | Discovered new exit (range 15) 4470 | -9/Exiles | Met 8R-AWN 4494 | -9/Exiles | Met EX-HEX 4557 | -9/Exiles | Met EX-DEC 4593 | -9/Exiles | Visited The Gauntlet 4818 | -9/Exiles | Met EX-BIN 4845 | -9/Exiles | Aligned with FarCom system 4846 | -9/Exiles | Given EX-Vault access code 4922 | -9/Exiles | Opened EX-Vault 4936 | -9/Exiles | Found Prototype Energy Cannon 4943 | -9/Exiles | Identified Latent Energy Streamer 5051 | -9/Exiles | Warned to stay clear of 0b10 Research branches 5140 | -9/Exiles | Learned location of Zion (-6) 5231 | -9/Exiles | Discovered new exit (range 12) 5257 | -9/Exiles | Left Exiles lab with Latent Energy Streamer 5257 | -9/Exiles | Entered Mines 5473 | -8/Mines | Discovered exit to Materials (range 4) 5483 | -8/Mines | Entered Materials 5483 | -8/Materials | Evolved 2 slots: Power x1, Propulsion x1 5484 | -8/Materials | Identified exit to Factory 5808 | -8/Materials | Lost 4 parts (1n1u2w) 5944 | -8/Materials | Core integrity fell below 50% 5978 | -8/Materials | System corruption reached 10% 5987 | -8/Materials | Lost 3 parts (1p1n1u) 5998 | -8/Materials | Destroyed 8 combat bots 6098 | -8/Materials | System corruption reached 30% 6158 | -8/Materials | Crushed by falling debris 6268 | -8/Materials | Core integrity fell below 20% 6444 | -8/Materials | Entered Factory 6444 | -7/Factory | Evolved 2 slots: Utility x1, Weapon x1 6495 | -7/Factory | Build established: Scavenger-Mutant 6623 | -7/Factory | Fabricated Mni. Grenade Launcher (x1) 6721 | -7/Factory | Lost 8 parts (1p2n2u3w) 7337 | -7/Factory | Build established: Mutant 7683 | -7/Factory | Repaired Lgt. Nuclear Core 7751 | -7/Factory | Discovered new exit (range 12) 7843 | -7/Factory | System corruption reached 10% 7985 | -7/Factory | Entered Lower Caves 8033 | -7/Lower Caves | Learned Factory stockpile data 8290 | -7/Lower Caves | Discovered new exit (range 15) 8503 | -7/Lower Caves | Learned Factory stockpile data 8512 | -7/Lower Caves | Build established: Scavenger-Gunner 8812 | -7/Lower Caves | Spotted B-75 Beast 8883 | -7/Lower Caves | Core integrity fell below 50% 8887 | -7/Lower Caves | Destroyed B-75 Beast 8913 | -7/Lower Caves | Lost 6 parts (2p1n3w) 9039 | -7/Lower Caves | Lost 8 parts (1p3n4w) 9152 | -7/Lower Caves | Attracted the attention of an 0b10 outpost 9163 | -7/Lower Caves | Core integrity fell below 20% 9172 | -7/Lower Caves | Destroyed by L-41 Fighter with Axe Last Messages --------------- Destroyed Lgt. Nuclear Core. S-27 Virus system corrupted by crushing effect. S-27 Virus knocked back. W=R9/MFRTFYDPXFQXU#JUK0 HJVIJY2VXRVQX|CJ Y-64 Sentinel: "REQUESTING BACKUP." S-27 Virus misfires. Lrg. Storage Unit destroyed. Destroyed VTOL Module. S-27 Virus system corrupted by crushing effect. S-27 Virus system terminally corrupted. Lgt. Nuclear Core fried. Destroyed Imp. Heat Sink. G-47 Trooper system corrupted by crushing effect. Imp. Heat Sink destroyed. Destroyed VTOL Module. S-27 Virus system corrupted by crushing effect. S-27 Virus knocked back. Flexi-carbon Leg destroyed. S-27 Virus system terminally corrupted. Great Maul destroyed. Map ----- +----------------------------------------------------+ | | | | | | | | | | | | | | | | | | | ????????????????????????????????????????????????? | | ????????????????????????????????????????????????? | | ????????????????????????????????????????????????? | | ????????????????????????????????????????????????? | | ????????????????????????????????????????????????? | | ????????????????????????????????????????????????? | | ????????????????????????????????????????????????? | | ????????????????????????????????????????????????? | | ????????????????????????????????????????????????? | | #######?????????????????????????????????????????? | | # #?????????????????????????????????????????? | | # " " #?????????????????????????????????????????? | | # " " #?????????????????????????????????????????? | | # " #????????#############????????????????????? | | # "" #????????# %s ;#????????????????????? | | # ########?# l #?????????????????????? | | #?# # $ #@#?????????????????????? | | ##??### ### #?????????????????????? | | #### #" ???# #?????????????????????? | | # ##???? ### #" ????# #####?????????????????? | | ## ##???? #???#??????# ##????????????????? | | ## #???## #??????????# #????????????????? | | # #### #?# ######## ##????????????????? | | ## #?# #####?????????????????? | | ### ####### #####?????????????????????? | | ### ##???# #?####????????????????????? | | ### #???# ### ##???????????????????? | | ## #### # ##??????????????????? | | # #??????????????????? | | # #### ##??????????????????? | | ####??## ###???????????????????? | | ???????# ##?????????????????????? | | ??????## ######### ##?????????????????????? | | ?????## ##??????# #?????????????????????? | | ?????? #???#### #?????????????????????? | | ?????? #???# ##?????????????????????? | | ?????? #???# ##?????????????????????? | | ??????# #???# ##????????????????????? | | ??????# #???# ##???????????????????? | | ??##### ##???## #???????????????????? | | ### #?????### #???##??????????????? | +----------------------------------------------------+ Best States ------------- Heat Dissipation 48 Energy Generation 25 Energy Capacity 465 Matter Stores 300 Matter Capacity 300 Sight Range 16 Terrain Scan Density 10 Armor Coverage 225 Core Shielding 20 Evasion (%) 55 Targeting Accuracy 8 Target Analysis 5 Core Analysis 6 Recoil Reduction 3 Particle Charging 15 Trap Extractor Capacity 4 Item Schematics ----------------- Mni. Grenade Launcher | -9/Materials | Scanalyzed Robot Schematics ------------------ None Fabricated ------------ Mni. Grenade Launcher | x1 | -7/Factory Alien Tech Used ----------------- None Achievements -------------- Hunted Challenges ------------ None Game ------ Seed DefenseCooledRegenerator Manual? 0 Play Time 02:30:26 Cumulative 112.9 hours Start 2022.03.22 @ 15:06:09 End 2022.03.22 @ 23:27:45 Sessions 1 Manual Loads 0 Difficulty Rogue Special Mode None Game No. 53 Rogue 53 Adventurer 0 Explorer 0 Win Type - Total 0 Types 0/0/0/0/0/0/0/0/0 Lore% 27 Gallery% 31 Achievement% 21 Wizard Run 0 Options --------- ASCII 0 Keyboard 0 Movement Numpad Keybinds 0 Fullscreen 1 Font 18/SmallcapsGlow Map View 76x50 Tactical HUD 0 Map Filters NONE Filters NONE Steam 1 RUN: 083c0e6c-56f0-42cd-bd87-3c2c73ae77d6